fUSD/lending_fUSD_20240722
["ID","MTS","AMOUNT","RATE_DAILY","PERIOD"]
[332902569,1721668245440,-150.0,0.00011695,2]
[332902571,1721668245450,-150.0,0.00011696,2]
[332902573,1721668245460,-150.0,0.000117,2]
[332902575,1721668245470,-150.0,0.000117,2]
[332902577,1721668245480,-150.0,0.00011705,2]
[332902579,1721668245489,-150.0,0.00011707,2]
[332902581,1721668245499,-150.0,0.00011709,2]
[332902583,1721668245509,-150.0,0.0001171,2]
[332902585,1721668245519,-150.0,0.00011714,2]
[332902587,1721668245528,-150.0,0.00011715,2]
[332902588,1721668245538,-150.0,0.00011716,2]
[332902589,1721668245548,-150.0,0.00011721,2]
[332902590,1721668245557,-150.0,0.00011731,2]
[332902591,1721668245567,-150.0,0.0001174,2]
[332902592,1721668245577,-150.0,0.00011743,2]
[332902593,1721668245586,-150.0,0.00011755,2]
[332902594,1721668245596,-150.0,0.00011756,2]
[332902595,1721668245606,-150.0,0.00011756,2]
[332902596,1721668245617,-150.0,0.00011756,2]
[332902597,1721668245626,-150.0,0.00011758,2]
[332902598,1721668245636,-150.0,0.00011767,2]
[332902600,1721668245646,-150.0,0.00011767,2]
[332902602,1721668245656,-150.0,0.00011772,2]
[332902603,1721668245666,-150.0,0.00011776,2]
[332902605,1721668245676,-150.0,0.00011782,2]
[332902607,1721668245686,-150.0,0.00011782,2]
[332902609,1721668245696,-150.0,0.00011793,2]
[332902610,1721668245706,-150.0,0.00011796,2]
[332902612,1721668245716,-150.0,0.000118,2]
[332902614,1721668245726,-150.0,0.000118,2]
[332902616,1721668245735,-150.0,0.00011803,2]
[332902618,1721668245745,-150.0,0.00011804,2]
[332902620,1721668245754,-150.0,0.00011809,2]
[332902622,1721668245764,-150.0,0.00011813,2]
[332902624,1721668245773,-150.0,0.00011816,2]
[332902626,1721668245783,-150.0,0.00011816,2]
[332902628,1721668245793,-150.0,0.00011817,2]
[332902630,1721668245803,-150.0,0.00011818,2]
[332902632,1721668245813,-150.0,0.00011828,2]
[332902634,1721668245822,-150.0,0.00011829,2]
[332902636,1721668245832,-150.0,0.00011829,2]
[332902638,1721668245842,-150.0,0.00011831,2]
[332902640,1721668245852,-150.0,0.00011831,2]
[332902642,1721668245863,-150.0,0.00011833,2]
[332902644,1721668245872,-150.0,0.00011833,2]
[332902646,1721668245883,-150.0,0.00011834,2]
[332902648,1721668245892,-150.0,0.00011835,2]
[332902650,1721668245902,-150.0,0.00011847,2]
[332902652,1721668245912,-150.0,0.00011852,2]
[332902654,1721668245921,-150.0,0.00011855,2]
[332902656,1721668245932,-150.0,0.00011856,2]
[332902658,1721668245942,-150.0,0.00011859,2]
[332902660,1721668245952,-150.0,0.00011863,2]
[332902662,1721668245962,-150.0,0.00011866,2]
[332902664,1721668245972,-150.0,0.00011874,2]
[332902666,1721668245983,-150.0,0.00011886,2]
[332902668,1721668245993,-150.0,0.00011894,2]
[332902670,1721668246003,-150.0,0.00011898,2]
[332902672,1721668246013,-47142.01699538,0.000119,2]
[332902690,1721668246342,-150.0,0.00011635,2]
[332902691,1721668246353,-150.0,0.00011714,2]
[332902692,1721668246364,-150.0,0.00011728,2]
[332902693,1721668246374,-150.0,0.00011753,2]
[332902694,1721668246386,-150.0,0.00011885,2]
[332902695,1721668246396,-5554.4,0.000119,2]
[332902701,1721668247267,-3771.23305776,0.00011412,2]
[332902702,1721668247285,-9545.2708306,0.00011412,2]
[332902703,1721668247296,-418.02742555,0.00011412,2]
[332902704,1721668247326,-376.30297652,0.00011412,2]
[332902705,1721668247337,-1000.0,0.00011412,2]
[332902706,1721668247349,-34889.16570957,0.00011412,2]
[332902707,1721668247359,-150.0,0.00011633,2]
[332902708,1721668247369,-150.0,0.00011644,2]
[332902709,1721668247378,-150.0,0.00011646,2]
[332902710,1721668247388,-150.0,0.00011647,2]
[332902711,1721668247398,-150.0,0.00011649,2]
[332902712,1721668247407,-150.0,0.0001165,2]
[332902713,1721668247520,-150.0,0.00011652,2]
[332902714,1721668247532,-150.0,0.00011666,2]
[332902715,1721668247543,-150.0,0.00011668,2]
[332902716,1721668247553,-150.0,0.00011674,2]
[332902717,1721668247563,-150.0,0.00011676,2]
[332902718,1721668247573,-150.0,0.00011691,2]
[332902719,1721668247583,-150.0,0.00011693,2]
[332902720,1721668247594,-150.0,0.00011697,2]
[332902721,1721668247604,-150.0,0.00011709,2]
[332902722,1721668247613,-150.0,0.00011725,2]
[332902723,1721668247623,-150.0,0.00011733,2]
[332902724,1721668247632,-150.0,0.00011736,2]
[332902725,1721668247642,-150.0,0.00011754,2]
[332902726,1721668247652,-150.0,0.00011756,2]
[332902727,1721668247662,-150.0,0.00011756,2]
[332902728,1721668247672,-150.0,0.00011759,2]
[332902729,1721668247682,-150.0,0.00011772,2]
[332902730,1721668247693,-150.0,0.00011773,2]
[332902731,1721668247703,-150.0,0.00011773,2]
[332902732,1721668247712,-150.0,0.00011783,2]
[332902733,1721668247722,-150.0,0.00011787,2]
[332902734,1721668247732,-150.0,0.00011789,2]
[332902735,1721668247742,-150.0,0.00011816,2]
[332902736,1721668247752,-150.0,0.00011823,2]
[332902737,1721668247762,-150.0,0.00011836,2]
[332902738,1721668247772,-150.0,0.00011855,2]
[332902739,1721668247782,-150.0,0.0001186,2]
[332902740,1721668247792,-150.0,0.00011876,2]
[332902741,1721668247802,-150.0,0.00011877,2]
[332902742,1721668247812,-150.0,0.0001188,2]
[332902743,1721668247822,-150.0,0.00011883,2]
[332902744,1721668247832,-150.0,0.00011895,2]
[332902745,1721668247841,-1164.51379052,0.00011899,2]
[332902746,1721668247852,-11050.44858008,0.000119,2]
[332902747,1721668247865,-1882.0,0.000119,2]
[332902748,1721668247876,-587.2050527,0.000119,2]
[332902749,1721668247888,-1502.556,0.000119,2]
[332902750,1721668247900,-360.96531215,0.000119,2]
[332902751,1721668247912,-8690.95527423,0.000119,2]
[332902753,1721668306744,681.57,8.934e-05,2]
[332902754,1721668307593,173.46,8.681e-05,2]
[332902757,1721668393237,7518.04310977,8.681e-05,2]
[332902758,1721668393262,39.64224728,8.681e-05,2]
[332902759,1721668862693,647.49,8.88e-05,2]
[332902760,1721668871510,7566.63074584,8.681e-05,2]
[332902761,1721668880255,1785.87925416,8.681e-05,2]
[332902762,1721668880277,8214.12074584,8.681e-05,2]
[332902763,1721669001533,10000.0,8.681e-05,2]
[332902764,1721669115422,10000.0,8.681e-05,2]
[332902766,1721669208272,10000.0,8.681e-05,2]
[332902771,1721669317358,10000.0,8.681e-05,2]
[332902775,1721669347251,10000.0,8.681e-05,2]
[332902801,1721669431855,-300.0,0.00010521,2]
[332902802,1721669431866,-241.00459026,0.00010522,2]
[332902803,1721669431875,-734.85127068,0.00010522,2]
[332902804,1721669431885,-203.08849895,0.00010522,2]
[332902805,1721669431895,-256.70098335,0.00010522,2]
[332902806,1721669431904,-1023.34353588,0.00010522,2]
[332902807,1721669431913,-890.85720905,0.00010522,2]
[332902808,1721669431923,-432.25090401,0.00010522,2]
[332902809,1721669431933,-9186.71743601,0.00010522,2]
[332902810,1721669431943,-191.68647548,0.00010522,2]
[332902811,1721669431952,-256.59073913,0.00010522,2]
[332902812,1721669431961,-1195.92381998,0.00010522,2]
[332902813,1721669431971,-365.85870865,0.00010522,2]
[332902814,1721669431980,-209.80984494,0.00010522,2]
[332902815,1721669431990,-484.56827813,0.00010522,2]
[332902816,1721669431999,-155.06149887,0.00010522,2]
[332902817,1721669432008,-200.0,0.00010685,2]
[332902818,1721669432018,-7172.21821425,0.00010704,2]
[332902819,1721669432029,-1966.96178575,0.00010704,2]
[332902820,1721669432038,-303.41,0.00010743,2]
[332902821,1721669432047,-689.98305352,0.00010758,2]
[332902822,1721669432059,-684.71908266,0.00010758,2]
[332902823,1721669432070,-712.06786382,0.00010758,2]
[332902824,1721669432080,-282.04642521,0.00010778,2]
[332902825,1721669432094,-567.14,0.00010778,2]
[332902841,1721669433262,-150.81357479,0.00010778,2]
[332902842,1721669433273,-250.0,0.00010959,2]
[332902843,1721669433282,-1000.0,0.00011,2]
[332902844,1721669433291,-155.0,0.00011105,2]
[332902845,1721669433301,-155.0,0.00011105,2]
[332902846,1721669433311,-647.49,0.00011144,2]
[332902847,1721669433320,-180.17373979,0.00011144,2]
[332902848,1721669433332,-319.81626021,0.00011144,2]
[332902849,1721669433341,-119.16251843,0.00011161,2]
[332902850,1721669433353,-479.97991436,0.00011161,2]
[332902851,1721669433365,-177.51,0.00011237,2]
[332902852,1721669433374,-6038.7746,0.00011298,2]
[332902853,1721669433383,-420.11,0.000113,2]
[332902854,1721669433392,-155.0,0.00011322,2]
[332902855,1721669433402,-661.18414,0.00011498,2]
[332902856,1721669433411,-184.166463,0.00011498,2]
[332902857,1721669433420,-223.868134,0.00011498,2]
[332902858,1721669433429,-175.557918,0.00011498,2]
[332902859,1721669433439,-175.557918,0.00011498,2]
[332902860,1721669433448,-875.21709,0.00011498,2]
[332902861,1721669433458,-1644.983935,0.00011498,2]
[332902862,1721669433467,-172.48226,0.00011498,2]
[332902863,1721669433477,-1000.0,0.000115,2]
[332902864,1721669433486,-420.0,0.00011567,2]
[332902865,1721669433496,-150.0,0.00011628,2]
[332902866,1721669433505,-661.18414,0.00011642,2]
[332902867,1721669433515,-1644.983935,0.00011642,2]
[332902868,1721669433524,-875.21709,0.00011642,2]
[332902869,1721669433533,-150.0,0.00011651,2]
[332902870,1721669433543,-150.0,0.0001166,2]
[332902871,1721669433552,-150.0,0.00011669,2]
[332902872,1721669433562,-184.166463,0.0001169,2]
[332902873,1721669433572,-150.0,0.00011691,2]
[332902874,1721669433581,-150.0,0.000117,2]
[332902875,1721669433591,-1000.0,0.000117,2]
[332902876,1721669433600,-193.22919597,0.00011708,2]
[332902877,1721669433612,-150.0,0.00011718,2]
[332902878,1721669433622,-184.24150342,0.00011725,2]
[332902879,1721669433631,-150.0,0.00011731,2]
[332902880,1721669433640,-150.0,0.00011733,2]
[332902881,1721669433650,-150.0,0.00011734,2]
[332902882,1721669433659,-150.0,0.00011753,2]
[332902883,1721669433669,-300.0,0.00011758,2]
[332902884,1721669433679,-150.0,0.00011774,2]
[332902885,1721669433688,-661.18414,0.00011786,2]
[332902886,1721669433698,-1644.983935,0.00011786,2]
[332902887,1721669433707,-875.21709,0.00011786,2]
[332902888,1721669433718,-150.0,0.00011787,2]
[332902889,1721669433727,-5846.83440526,0.00011793,2]
[332902890,1721669433740,-7592.89559474,0.00011793,2]
[332902891,1721669433749,-2100.2721,0.00011793,2]
[332902892,1721669433759,-1000.0,0.000118,2]
[332902893,1721669433769,-7500.0,0.000118,2]
[332902894,1721669433779,-3536.56654136,0.000118,2]
[332902895,1721669433789,-150.0,0.00011826,2]
[332902896,1721669433799,-150.0,0.00011838,2]
[332902897,1721669433808,-450.0,0.00011839,2]
[332902898,1721669433818,-620.0,0.00011839,2]
[332902899,1721669433828,-150.0,0.00011839,2]
[332902900,1721669433839,-810.0,0.00011839,2]
[332902901,1721669433848,-445.0,0.00011839,2]
[332902902,1721669433857,-2382.0,0.00011839,2]
[332902903,1721669433867,-150.0,0.00011839,2]
[332902904,1721669433877,-1994.0,0.00011839,2]
[332902905,1721669433887,-150.0,0.00011839,2]
[332902906,1721669433896,-3283.0,0.00011839,2]
[332902907,1721669433906,-550.0,0.00011839,2]
[332902908,1721669433916,-1073.0,0.00011839,2]
[332902909,1721669433925,-2634.17105321,0.00011839,2]
[332902910,1721669433946,-2485.82894679,0.00011839,2]
[332902911,1721669433956,-2961.903,0.00011839,2]
[332902912,1721669433966,-1254.0,0.00011839,2]
[332902913,1721669433976,-1829.0,0.00011839,2]
[332902914,1721669433986,-1202.0,0.00011839,2]
[332902915,1721669433996,-150.0,0.00011847,2]
[332902916,1721669434006,-317.56043887,0.0001185,2]
[332902917,1721669434015,-150.0,0.00011854,2]
[332902918,1721669434025,-71.81021429,0.00011855,2]
[332902919,1721669434037,-78.18978571,0.00011855,2]
[332902920,1721669434047,-150.0,0.00011868,2]
[332902921,1721669434056,-150.0,0.00011869,2]
[332902922,1721669434066,-150.0,0.00011871,2]
[332902923,1721669434076,-150.0,0.00011872,2]
[332902924,1721669434085,-150.0,0.00011876,2]
[332902925,1721669434095,-29.06021429,0.00011882,2]
[332902926,1721669434135,-155.10624871,0.00011882,2]
[332902927,1721669434144,-582.25689526,0.00011899,2]
[332902928,1721669434154,-5521.42600838,0.00011899,2]
[332902929,1721669434163,-2052.94077558,0.000119,2]
[332902930,1721669434175,-502.90722895,0.000119,2]
[332902931,1721669434187,-541.0092199,0.000119,2]
[332902940,1721669437873,-362.0,0.00011839,2]
[332902941,1721669437882,-207.89984797,0.00011839,2]
[332902942,1721669437894,-4093.73668848,0.00011839,2]
[332902943,1721669437905,-10978.45424228,0.00011839,2]
[332902944,1721669437975,-1520.39891193,0.00011839,2]
[332902945,1721669437986,-4.38930934,0.00011839,2]
[332902946,1721669437996,-558.92395974,0.000119,2]
[332902947,1721669438007,-10999.2881,0.000119,2]
[332902948,1721669438018,-4999.45156282,0.000119,2]
[332902949,1721669438034,-12133.84786113,0.000119,2]
[332902950,1721669438050,-116120.30647335,0.000119,2]
[332902959,1721669438195,-782.65781148,0.000119,2]
[332902961,1721669438207,-481.13642385,0.000119,2]
[332902962,1721669438219,-2792.47538781,0.000119,2]
[332903106,1721669439943,-291.12844763,0.00011899,2]
[332903108,1721669439954,-13402.01307237,0.000119,2]
[332903136,1721669440234,-56814.12271577,0.000119,2]
[332903138,1721669440247,-6946.52823739,0.000119,2]
[332903140,1721669440258,-333.40505906,0.000119,2]
[332903143,1721669440270,-1160.18771992,0.000119,2]
[332903146,1721669440295,-24079.9417196,0.000119,2]
[332903570,1721669446869,-342.13318843,0.00010522,2]
[332903571,1721669446878,-2890.05049157,0.000118,2]
[332903572,1721669446891,-3350.64162744,0.000118,2]
[332903577,1721670112793,6000.0,0.00025,120]
[332903578,1721670125165,582.74,9.021e-05,2]
[332903607,1721670592922,-247.6779841,0.00010934,2]
[332903608,1721670592947,-1043.33086312,0.00010934,2]
[332903609,1721670592970,-530.01565204,0.00010934,2]
[332903610,1721670592995,-1000.0,0.00010966,2]
[332903611,1721670593019,-943.0,0.00011,2]
[332903612,1721670593043,-150.0,0.00011068,2]
[332903613,1721670593067,-150.0,0.00011104,2]
[332903614,1721670593089,-155.0,0.00011105,2]
[332903615,1721670593112,-155.1825966,0.00011105,2]
[332903616,1721670593134,-158.79626674,0.00011105,2]
[332903617,1721670593157,-191.73234292,0.00011105,2]
[332903618,1721670593180,-349.14572823,0.00011105,2]
[332903619,1721670593203,-371.51160251,0.00011105,2]
[332903620,1721670593226,-531.60155554,0.00011105,2]
[332903621,1721670593249,-5183.0054082,0.00011105,2]
[332903624,1721670607726,-33850.0,0.00011,2]
[332903640,1721670632030,-261.57088958,0.00011,2]
[332903641,1721670632066,-725.44019041,0.00011,2]
[332903642,1721670632080,-5869.27064504,0.00011,2]
[332903643,1721670632092,-3529.48130186,0.00011,2]
[332903644,1721670632203,-500.0,0.00011,2]
[332903645,1721670632320,-2200.0,0.00011,2]
[332903684,1721670640364,-3064.23697311,0.00011,2]
[332903685,1721670640373,-412.45599061,0.00011,2]
[332903686,1721670640383,-4075.81007867,0.00011105,2]
[332903687,1721670640392,-5658.88798435,0.00011186,2]
[332903688,1721670640408,-2033.01980657,0.00011186,2]
[332903693,1721670641227,-311.2859255,0.00011186,2]
[332903694,1721670641239,-2013.124334,0.00011186,2]
[332903695,1721670641334,-404.62776063,0.00011186,2]
[332903696,1721670641345,-3373.13961906,0.00011186,2]
[332903697,1721670641358,-1952.54032627,0.00011186,2]
[332903698,1721670641369,-271.49659995,0.00011186,2]
[332903699,1721670641380,-3861.8492416,0.00011186,2]
[332903700,1721670641411,-2750.64342229,0.00011186,2]
[332903701,1721670641422,-582.74,0.00011285,2]
[332903702,1721670641431,-155.0,0.00011324,2]
[332903703,1721670641442,-1632.38014955,0.00011324,2]
[332903704,1721670641452,-1342.449564,0.00011498,2]
[332903705,1721670641461,-1342.449564,0.00011642,2]
[332903706,1721670641471,-13151.3,0.00011741,2]
[332903707,1721670641480,-11581.74,0.00011741,2]
[332903708,1721670641490,-9534.74,0.00011741,2]
[332903709,1721670641499,-499.99,0.00011741,2]
[332903710,1721670641509,-1342.449564,0.00011786,2]
[332903711,1721670641519,-1467.9323363,0.00011797,2]
[332903712,1721670641528,-300.10326617,0.000118,2]
[332903713,1721670641537,-2013.4647944,0.000118,2]
[332903714,1721670641547,-80514.85386709,0.000118,2]
[332903715,1721670641561,-9210.76,0.000118,2]
[332903716,1721670641576,-41374.91738175,0.000118,2]
[332903717,1721670641587,-21256.29782865,0.000118,2]
[332903718,1721670641600,-8949.524,0.000118,2]
[332903719,1721670641612,-300.0495264,0.000118,2]
[332903720,1721670641624,-345110.616024,0.000118,2]
[332903721,1721670641648,-698.50638546,0.000118,2]
[332903722,1721670641664,-1730.84596,0.000118,2]
[332903733,1721670643121,-690.2809,0.000117,2]
[332903734,1721670643131,-57002.93727411,0.000118,2]
[332903735,1721670643244,-327.12129972,0.000118,2]
[332903736,1721670643256,-687.85090234,0.000118,2]
[332903737,1721670643268,-337791.68955048,0.000118,2]
[332903738,1721670643278,-10788.201,0.000118,2]
[332903739,1721670643287,-1829.0,0.00011839,2]
[332903740,1721670643298,-362.0,0.00011839,2]
[332903741,1721670643308,-1663.0,0.00011839,2]
[332903742,1721670643317,-1254.0,0.00011839,2]
[332903743,1721670643327,-445.0,0.00011839,2]
[332903744,1721670643336,-620.0,0.00011839,2]
[332903745,1721670643346,-450.0,0.00011839,2]
[332903746,1721670643355,-150.0,0.00011839,2]
[332903747,1721670643365,-2382.0,0.00011839,2]
[332903748,1721670643375,-150.0,0.00011839,2]
[332903749,1721670643384,-1994.0,0.00011839,2]
[332903750,1721670643393,-3283.0,0.00011839,2]
[332903751,1721670643402,-550.0,0.00011839,2]
[332903752,1721670643411,-150.218,0.00011839,2]
[332903753,1721670643421,-156.085,0.00011839,2]
[332903754,1721670643430,-1470.037,0.00011839,2]
[332903755,1721670643440,-228.886,0.00011839,2]
[332903756,1721670643449,-5117.0,0.00011839,2]
[332903757,1721670643458,-151.177,0.00011839,2]
[332903758,1721670643467,-774.517,0.00011839,2]
[332903759,1721670643476,-199.442,0.00011839,2]
[332903761,1721670643486,-193.746,0.00011839,2]
[332903763,1721670643495,-206.27,0.00011839,2]
[332903764,1721670643505,-1467.9323363,0.00011847,2]
[332903765,1721670643514,-12799.56052812,0.0001185,2]
[332903766,1721670643523,-2206.29679381,0.00011896,2]
[332903767,1721670643533,-176.9059927,0.00011897,2]
[332903768,1721670643542,-1881.1683857,0.00011897,2]
[332903769,1721670643551,-7516.8938686,0.00011897,2]
[332903770,1721670643560,-10275.5263541,0.00011897,2]
[332903771,1721670643570,-291.12844762,0.00011899,2]
[332903772,1721670643579,-198147.31874202,0.000119,2]
[332903773,1721670643590,-500.32600203,0.000119,2]
[332903774,1721670643625,-2984.75,0.000119,2]
[332903775,1721670643636,-1596.30903577,0.000119,2]
[332903776,1721670643647,-1712.7,0.000119,2]
[332903777,1721670643666,-3746.70924591,0.000119,2]
[332903781,1721670646350,-673.42,0.000119,2]
[332903783,1721670646362,-626.69982208,0.000119,2]
[332903785,1721670646498,-2929.48393449,0.000119,2]
[332903786,1721670646512,-9049.34034,0.000119,2]
[332903787,1721670646526,-7297.01446395,0.000119,2]
[332903788,1721670646541,-3337.46412,0.000119,2]
[332903790,1721670646553,-3750.898,0.000119,2]
[332903793,1721670646566,-3063.28039453,0.000119,2]
[332903795,1721670646578,-341653.50498862,0.000119,2]
[332903797,1721670646590,-129502.37097447,0.000119,2]
[332903799,1721670646604,-25449.9999,0.000119,2]
[332903802,1721670646616,-8400.0,0.000119,2]
[332903804,1721670646627,-1686.99799992,0.000119,2]
[332904239,1721671393748,539.91,8.994e-05,2]
[332904240,1721671487700,349.94673741,8.994e-05,2]
[332904241,1721671488886,295.82708521,8.949e-05,2]
[332904245,1721671598397,8231.57617738,8.949e-05,2]
[332904246,1721671598423,35157.92382262,8.949e-05,2]
[332904248,1721671683468,10000.0,8.949e-05,2]
[332904304,1721671792403,10000.0,8.949e-05,2]
[332904336,1721671833119,-250.0,0.00010451,2]
[332904337,1721671833130,-114.67036088,0.00010475,2]
[332904338,1721671833142,-11569.84353504,0.00010475,2]
[332904339,1721671833237,-12215.48610408,0.00010475,2]
[332904340,1721671833247,-250.0,0.00010487,2]
[332904341,1721671833257,-168.76,0.00010487,2]
[332904342,1721671833267,-10000.0,0.00010802,2]
[332904343,1721671833276,-150.0,0.00010846,2]
[332904344,1721671833287,-293.19243531,0.00010847,2]
[332904345,1721671833297,-1255.6296301,0.00010847,2]
[332904346,1721671833307,-10130.43261139,0.00010847,2]
[332904347,1721671833317,-155.30785016,0.00010847,2]
[332904348,1721671833327,-210.69145254,0.00010847,2]
[332904349,1721671833337,-518.1079,0.000109,2]
[332904350,1721671833347,-400.0,0.000109,3]
[332904351,1721671833356,-236.03233616,0.00010902,2]
[332904352,1721671833366,-155.0,0.00010902,2]
[332904353,1721671833376,-3399.20876057,0.00010902,2]
[332904354,1721671833386,-11793.635292,0.00010902,2]
[332904355,1721671833396,-169.29072955,0.00010902,2]
[332904356,1721671833406,-240.83474057,0.00010902,2]
[332904357,1721671833416,-155.13638056,0.00010902,2]
[332904358,1721671833426,-1076.45370626,0.00010902,2]
[332904359,1721671833437,-356.97970176,0.00010902,2]
[332904360,1721671833447,-192.87425546,0.00010902,2]
[332904361,1721671833457,-235.61535094,0.00010902,2]
[332904362,1721671833467,-225.88135815,0.00010902,2]
[332904363,1721671833477,-163.46889947,0.00010902,2]
[332904364,1721671833488,-3116.78585996,0.00010902,2]
[332904365,1721671833497,-155.0,0.00010902,2]
[332904366,1721671833508,-939.45655838,0.00010902,2]
[332904367,1721671833518,-1000.0,0.00010916,2]
[332904368,1721671833528,-303.63,0.00010992,2]
[332904369,1721671833538,-900.0,0.00011,4]
[332904370,1721671833548,-1300.0,0.000111,4]
[332904371,1721671833558,-1000.0,0.00011104,2]
[332904372,1721671833569,-1632.38014955,0.00011105,2]
[332904373,1721671833578,-19086.28575192,0.00011105,2]
[332904374,1721671833588,-1394.82082249,0.00011105,2]
[332904375,1721671833598,-298.26312183,0.00011105,2]
[332904376,1721671833608,-338.54927703,0.00011105,2]
[332904377,1721671833618,-3590.92115089,0.00011186,2]
[332904378,1721671833643,-1687.475,0.00011186,2]
[332904379,1721671833765,-4811.24858087,0.00011186,2]
[332904380,1721671833777,-1039.39805608,0.00011186,2]
[332904381,1721671833787,-975.65228893,0.000112,4]
[332904418,1721671838390,-824.34771107,0.000112,4]
[332904419,1721671838400,-539.18566561,0.00011206,2]
[332904420,1721671838409,-308.89682017,0.00011206,2]
[332904421,1721671838419,-539.91,0.00011258,2]
[332904422,1721671838428,-457.56232228,0.000113,4]
[332904423,1721671838462,-552.62070963,0.000113,4]
[332904424,1721671838473,-498.35828287,0.000113,4]
[332904425,1721671838497,-535.43603324,0.000113,4]
[332904426,1721671838551,-256.02265198,0.000113,4]
[332904427,1721671838560,-409.89818705,0.00011324,2]
[332904428,1721671838569,-205.56916097,0.00011324,2]
[332904429,1721671838580,-584.46833432,0.00011324,2]
[332904430,1721671838589,-499.99,0.00011372,2]
[332904432,1721671838599,-400.0,0.000114,4]
[332904433,1721671838608,-400.0,0.000115,4]
[332904434,1721671838617,-1000.0,0.00011501,2]
[332904435,1721671838627,-400.0,0.000116,4]
[332904436,1721671838636,-11292.90364968,0.0001169,2]
[332904438,1721671838647,-4519.65421666,0.0001169,2]
[332904440,1721671838658,-597.77030358,0.0001169,2]
[332904783,1721671842323,-155.0,0.00011384,2]
[332904785,1721671842333,-1289.0037527,0.0001169,2]
[332904901,1721671843372,-12300.65807738,0.0001169,2]
[332904903,1721671843383,-1981.99189209,0.0001169,2]
[332904905,1721671843393,-31556.96285498,0.000117,2]
[332904907,1721671843404,-2002.53714502,0.000117,2]
[332904909,1721671843413,-400.0,0.000117,4]
[332904911,1721671843423,-3000.0,0.0001178,2]
[332904913,1721671843432,-926.4778,0.0001179,2]
[332904915,1721671843442,-176.85218512,0.00011796,2]
[332904916,1721671843452,-893.2677,0.00011797,2]
[332904919,1721671843463,-1000.0,0.000118,2]
[332904921,1721671843472,-12799.56052812,0.000118,2]
[332904923,1721671843482,-926.0,0.000118,4]
[332904925,1721671843492,-176.85218512,0.000118,2]
[332904927,1721671843502,-220.61,0.00011808,3]
[332904929,1721671843511,-1243.342,0.00011839,2]
[332904931,1721671843526,-1663.0,0.00011839,2]
[332904933,1721671843536,-361.0,0.00011839,2]
[332904934,1721671843545,-1829.0,0.00011839,2]
[332904936,1721671843555,-340.767,0.00011839,2]
[332904939,1721671843565,-150.0,0.00011839,2]
[332904940,1721671843574,-620.0,0.00011839,2]
[332904942,1721671843584,-2382.0,0.00011839,2]
[332904944,1721671843593,-2737.23345662,0.00011839,2]
[332905346,1721671847704,-790.03749529,0.00011324,2]
[332905348,1721671847714,-492.51754338,0.00011839,2]
[332905350,1721671847723,-66.47496133,0.00011839,2]
[332905361,1721671847823,-250.10479714,0.00011839,2]
[332905363,1721671847835,-233.42024153,0.00011839,2]
[332905365,1721671847845,-1994.0,0.00011839,2]
[332905367,1721671847854,-155.0,0.0001185,2]
[332905369,1721671847864,-425.43694771,0.0001185,2]
[332905371,1721671847874,-425.43694771,0.0001185,2]
[332905373,1721671847883,-267.826,0.00011883,2]
[332905375,1721671847893,-611232.42136181,0.0001189,2]
[332905377,1721671847906,-1322.85000005,0.0001189,2]
[332905379,1721671847918,-588.01966988,0.0001189,2]
[332905381,1721671847930,-675033.63513225,0.0001189,2]
[332905385,1721671847961,-11731.94728627,0.0001189,2]
[332905389,1721671848002,-1523.78274965,0.0001189,2]
[332905393,1721671848033,-815.6971792,0.0001189,2]
[332905396,1721671848050,-1895.66043834,0.0001189,2]